fUST/lending_fUST_20240326
["ID","MTS","AMOUNT","RATE_DAILY","PERIOD"]
[320465812,1711382488553,14073.04582425,0.00022,2]
[320465813,1711382564204,887.58959278,0.0002178,2]
[320465814,1711382564296,155.78570411,0.00022,2]
[320465815,1711382566729,312.94649189,0.00022,2]
[320465816,1711382570595,1825.55220474,0.00022,2]
[320465817,1711382628236,1771.32547101,0.0002178,2]
[320465818,1711382649621,155.0,0.0002178,2]
[320465824,1711382763613,158.9916691,0.0002215,2]
[320465825,1711382786155,159.823354,0.00021876,2]
[320465826,1711382806158,-155.0,0.00022865,2]
[320465827,1711382806182,-302.59359524,0.00022865,2]
[320465828,1711382806205,-780.33195473,0.00022866,2]
[320465829,1711382806346,-985.59619535,0.00022867,2]
[320465830,1711382806370,-6278.11118381,0.00022871,2]
[320465831,1711382806393,-1045.37186631,0.0002298,2]
[320465832,1711382806416,-15352.99520456,0.00023066,2]
[320465833,1711382874936,1000.0,0.00025,9]
[320465834,1711382922870,555.96,0.000222,2]
[320465835,1711382934085,267.6535873,0.00020966,2]
[320466000,1711383032576,-160.87070723,0.00023065,2]
[320466001,1711383032586,-9547.00479544,0.00023066,2]
[320466002,1711383032595,-166.666666,0.00023682,2]
[320466003,1711383032604,-300.0,0.00024128,2]
[320466004,1711383032624,-641.26859332,0.00024129,2]
[320466005,1711383032643,-200.0,0.00025392,2]
[320466006,1711383032655,-2000.0,0.00025528,2]
[320466007,1711383032672,-2044.7333689,0.00025849,2]
[320466008,1711383032689,-597.4111035,0.00025892,2]
[320466009,1711383032705,-2000.0,0.00025942,2]
[320466010,1711383032719,-267.6535873,0.00025966,2]
[320466011,1711383032736,-210.9419348,0.00025992,2]
[320466012,1711383032751,-2000.0,0.00026357,2]
[320466013,1711383032781,-3432.765997,0.00026771,2]
[320466014,1711383032802,-626.60827826,0.00026772,2]
[320466015,1711383032818,-7758.48352957,0.00027,2]
[320466016,1711383032836,-5504.60950064,0.00027374,5]
[320466017,1711383032857,-750.87855459,0.000274,2]
[320466018,1711383032873,-271.88533054,0.00027788,2]
[320466019,1711383032892,-215.94348858,0.00027889,2]
[320466020,1711383032911,-368.20255309,0.00027889,2]
[320466021,1711383032929,-223.37712629,0.00027889,2]
[320466022,1711383032946,-776.19487925,0.00027889,2]
[320466023,1711383032958,-270.49584508,0.00027889,2]
[320466024,1711383032970,-274.79192667,0.0002789,2]
[320466025,1711383032987,-1107.5280105,0.00027902,2]
[320466026,1711383033004,-406.40178043,0.00027902,2]
[320466027,1711383033018,-779.53103988,0.00027902,2]
[320466028,1711383033030,-293.51939938,0.00027902,2]
[320466029,1711383033050,-500.0,0.00027902,2]
[320466030,1711383033066,-500.0,0.00027902,2]
[320466031,1711383033083,-500.0,0.00027902,2]
[320466032,1711383033097,-500.0,0.00027902,2]
[320466033,1711383033113,-500.0,0.00027902,2]
[320466034,1711383033128,-500.0,0.00027902,2]
[320466035,1711383033140,-500.0,0.00027902,2]
[320466036,1711383033155,-500.0,0.00027902,2]
[320466037,1711383033168,-500.0,0.00027902,2]
[320466038,1711383033185,-500.0,0.00027902,2]
[320466039,1711383033197,-500.0,0.00027902,2]
[320466040,1711383033210,-500.0,0.00027902,2]
[320466041,1711383033223,-500.0,0.00027902,2]
[320466042,1711383033235,-500.0,0.00027902,2]
[320466043,1711383033248,-500.0,0.00027902,2]
[320466044,1711383033261,-500.0,0.00027902,2]
[320466045,1711383033275,-445.58553723,0.00027902,2]
[320466046,1711383033287,-500.0,0.00027902,2]
[320466047,1711383033300,-500.0,0.00027902,2]
[320466048,1711383033313,-500.0,0.00027902,2]
[320466049,1711383033325,-500.0,0.00027902,2]
[320466050,1711383033338,-500.0,0.00027902,2]
[320466051,1711383033352,-500.0,0.00027902,2]
[320466052,1711383033364,-500.0,0.00027902,2]
[320466053,1711383033377,-500.0,0.00027902,2]
[320466054,1711383033389,-500.0,0.00027902,2]
[320466055,1711383033401,-500.0,0.00027902,2]
[320466056,1711383033414,-685.75009172,0.00027903,2]
[320466057,1711383033430,-470.93164976,0.00027903,2]
[320466058,1711383033442,-160.95956073,0.00027904,10]
[320466059,1711383033456,-500.0,0.00027904,2]
[320466060,1711383033471,-380.02827594,0.00027904,2]
[320466061,1711383033485,-500.0,0.00027904,2]
[320466062,1711383033498,-555.41608936,0.00027904,2]
[320466063,1711383033511,-438.6343851,0.00027904,2]
[320466064,1711383033526,-46826.28648618,0.00027905,3]
[320466065,1711383033540,-19711.14718457,0.00027905,60]
[320466066,1711383033897,-5161.21150985,0.00027905,60]
[320466067,1711383033918,-419.20658273,0.00027902,2]
[320466097,1711383038598,-80.79341727,0.00027902,2]
[320466098,1711383038608,-500.0,0.00027902,2]
[320466099,1711383038618,-500.0,0.00027902,2]
[320466100,1711383038627,-500.0,0.00027902,2]
[320466101,1711383038638,-500.0,0.00027902,2]
[320466102,1711383038649,-500.0,0.00027902,2]
[320466103,1711383038658,-340.13536307,0.00027902,2]
[320466185,1711383044332,-159.86463693,0.00027902,2]
[320466187,1711383044342,-500.0,0.00027902,2]
[320466189,1711383044352,-217.76040526,0.00027902,2]
[320466191,1711383044364,-282.23959474,0.00027902,2]
[320466193,1711383044375,-500.0,0.00027902,2]
[320466195,1711383044385,-500.0,0.00027902,2]
[320466197,1711383044395,-500.0,0.00027902,2]
[320466199,1711383044405,-500.0,0.00027902,2]
[320466200,1711383044414,-500.0,0.00027902,2]
[320466201,1711383044424,-197.08950165,0.00027904,2]
[320466203,1711383044438,-1301.71798754,0.00027905,60]
[320466237,1711383046839,-237.05405564,0.00027903,2]
[320466238,1711383046861,-260787.95553659,0.00027905,60]
[320466239,1711383046874,-1784.200002,0.00027905,2]
[320466240,1711383046884,-500.0,0.00028039,2]
[320466241,1711383046893,-500.0,0.00028039,2]
[320466243,1711383046903,-500.0,0.00028039,2]
[320466245,1711383046913,-500.0,0.00028039,2]
[320466247,1711383046922,-500.0,0.00028039,2]
[320466248,1711383046932,-500.0,0.00028832,2]
[320466251,1711383046947,-500.0,0.00029999,2]
[320466253,1711383046958,-598.25926915,0.0003,2]
[320466263,1711383047104,-998.0,0.00033183,5]
[320466264,1711383047114,-865.39980906,0.00034,4]
[320466265,1711383047125,-998.0,0.0003493,5]
[320466266,1711383047136,-155.02635448,0.00035,4]
[320466267,1711383047146,-1822.42783438,0.00035,2]
[320466268,1711383047155,-1235.740483,0.00035616,120]
[320466269,1711383047164,-998.0,0.00036768,5]
[320466270,1711383047174,-998.0,0.00038704,5]
[320466271,1711383047184,-155.09922285,0.0004,4]
[320466272,1711383047195,-2644.93343496,0.0004,7]
[320466273,1711383047205,-30000.0,0.0004,2]
[320466274,1711383047215,-998.0,0.00040741,5]
[320466275,1711383047225,-987.38885002,0.00041094,4]
[320466276,1711383047234,-1963.53442722,0.00041094,4]
[320466277,1711383047243,-205.27707627,0.00041094,4]
[320466278,1711383047253,-500.0,0.00041096,31]
[320466279,1711383047262,-500.0,0.00041096,31]
[320466280,1711383047273,-500.0,0.00041096,31]
[320466281,1711383047283,-500.0,0.00041096,31]
[320466282,1711383047293,-500.0,0.00041096,31]
[320466283,1711383047302,-500.0,0.00041096,31]
[320466284,1711383047311,-500.0,0.00041096,31]
[320466285,1711383047320,-500.0,0.00041096,31]
[320466286,1711383047329,-278.60318767,0.00041096,31]
[320466287,1711383047338,-500.0,0.00041096,31]
[320466288,1711383047348,-500.0,0.00041096,31]
[320466290,1711383047357,-500.0,0.00041096,31]
[320466292,1711383047366,-500.0,0.00041096,31]
[320466294,1711383047374,-500.0,0.00041096,31]
[320466295,1711383047384,-500.0,0.00041096,31]
[320466297,1711383047392,-500.0,0.00041096,31]
[320466299,1711383047401,-500.0,0.00041096,31]
[320466301,1711383047411,-579.02149696,0.00041096,31]
[320466302,1711383047420,-500.0,0.00041096,31]
[320466304,1711383047429,-500.0,0.00041096,31]
[320466305,1711383047440,-500.0,0.00041096,31]
[320466307,1711383047451,-500.0,0.00041096,31]
[320466309,1711383047460,-500.0,0.00041096,31]
[320466311,1711383047469,-500.0,0.00041096,31]
[320466312,1711383047479,-500.0,0.00041096,31]
[320466314,1711383047488,-500.0,0.00041096,31]
[320466315,1711383047497,-500.0,0.00041096,31]
[320466316,1711383047506,-500.0,0.00041096,31]
[320466317,1711383047516,-500.0,0.00041096,31]
[320466318,1711383047526,-500.0,0.00041096,31]
[320466319,1711383047535,-500.0,0.00041096,31]
[320466320,1711383047544,-500.0,0.00041096,31]
[320466321,1711383047554,-500.0,0.00041096,31]
[320466322,1711383047563,-500.0,0.00041096,31]
[320466323,1711383047572,-500.0,0.00041096,31]
[320466325,1711383047582,-500.0,0.00041096,31]
[320466327,1711383047591,-500.0,0.00041096,31]
[320466329,1711383047600,-500.0,0.00041096,31]
[320466331,1711383047609,-550.0,0.00041096,31]
[320466333,1711383047618,-500.0,0.00041096,31]
[320466335,1711383047628,-500.0,0.00041096,31]
[320466337,1711383047637,-500.0,0.00041096,31]
[320466339,1711383047647,-500.0,0.00041096,31]
[320466340,1711383047662,-1235.740483,0.00041553,120]
[320466342,1711383047671,-6677.88538949,0.00041877,2]
[320466344,1711383047681,-2048.0,0.00042,60]
[320466346,1711383047694,-159.66412117,0.00042516,3]
[320466348,1711383047703,-998.0,0.00042885,30]
[320466350,1711383047713,-300.0,0.000429,4]
[320466352,1711383047722,-1536.7485306,0.000429,4]
[320466354,1711383047735,-661.0,0.00043,61]
[320466356,1711383047746,-365.46600126,0.00043,120]
[320466358,1711383047755,-10000.0,0.00043157,2]
[320466360,1711383047765,-404.9155609,0.00043288,2]
[320466362,1711383047774,-8000.0,0.00043529,90]
[320466364,1711383047783,-3202.59925314,0.00043735,2]
[320466366,1711383047792,-298.560012,0.00043835,7]
[320466368,1711383047801,-298.560012,0.00043835,7]
[320466370,1711383047810,-151.0,0.00043835,7]
[320466372,1711383047819,-20000.0,0.00043835,4]
[320466374,1711383047828,-20000.0,0.00043835,4]
[320466376,1711383047837,-20000.0,0.00043835,4]
[320466378,1711383047846,-20000.0,0.00043835,4]
[320466380,1711383047855,-20000.0,0.00043835,4]
[320466382,1711383047864,-20000.0,0.00043835,4]
[320466384,1711383047874,-20000.0,0.00043835,4]
[320466386,1711383047883,-20000.0,0.00043835,4]
[320466388,1711383047892,-20000.0,0.00043835,4]
[320466389,1711383047901,-20000.0,0.00043835,4]
[320466391,1711383047910,-20000.0,0.00043835,4]
[320466393,1711383047919,-20000.0,0.00043835,4]
[320466395,1711383047929,-20000.0,0.00043835,4]
[320466397,1711383047940,-20000.0,0.00043835,4]
[320466399,1711383047950,-11347.40589616,0.00043835,4]
[320466401,1711383047959,-5804.15,0.00043835,120]
[320466403,1711383047969,-3540.64,0.00043835,120]
[320466405,1711383047979,-500.0,0.00043835,30]
[320466407,1711383047988,-151.0,0.00043835,7]
[320466409,1711383047997,-300.0,0.000439,5]
[320466411,1711383048006,-1536.7485306,0.000439,5]
[320466413,1711383048015,-5029.12058469,0.00044,2]
[320466415,1711383048024,-2000.0,0.000441,45]
[320466417,1711383048033,-400.0,0.000441,20]
[320466419,1711383048043,-150.147053,0.000441,2]
[320466421,1711383048053,-10598.01242585,0.00044108,4]
[320466423,1711383048062,-3540.64,0.00044109,120]
[320466425,1711383048071,-2000.0,0.0004411,45]
[320466427,1711383048081,-13531.15253966,0.00044113,60]
[320466429,1711383048091,-2000.0,0.0004412,45]
[320466431,1711383048100,-2000.0,0.0004413,45]
[320466433,1711383048108,-2000.0,0.0004414,45]
[320466434,1711383048118,-2000.0,0.0004415,45]
[320466436,1711383048127,-151.0,0.0004415,7]
[320466438,1711383048136,-2000.0,0.0004416,45]
[320466440,1711383048145,-2000.0,0.0004417,45]
[320466442,1711383048155,-2000.0,0.0004418,45]
[320466444,1711383048164,-2000.0,0.0004419,45]
[320466446,1711383048173,-2000.0,0.000442,45]
[320466448,1711383048182,-2587.356947,0.0004421,45]
[320466450,1711383048194,-3540.64,0.00044383,120]
[320466452,1711383048203,-249.989,0.0004455,2]
[320466454,1711383048212,-21037.53730939,0.000446,2]
[320466456,1711383048221,-151.0,0.000446,7]
[320466458,1711383048230,-278.340054,0.000446,7]
[320466460,1711383048239,-278.340054,0.000446,7]
[320466462,1711383048248,-151.0,0.00044657,7]
[320466464,1711383048257,-5804.15,0.00044657,120]
[320466466,1711383048266,-3540.64,0.00044657,120]
[320466468,1711383048275,-159.823354,0.00044753,2]
[320466470,1711383048284,-2564.2145524,0.00044896,120]
[320466472,1711383048293,-157.07557789,0.00044898,4]
[320466474,1711383048303,-6183.4081635,0.00044898,120]
[320466476,1711383048312,-392.48223391,0.00044898,4]
[320466478,1711383048321,-158.82321689,0.00044898,4]
[320466480,1711383048329,-298.560012,0.00044898,7]
[320466482,1711383048338,-298.560012,0.00044898,7]
[320466483,1711383048347,-171.25013504,0.00044899,2]
[320466485,1711383048359,-171.25013504,0.00044899,2]
[320466487,1711383048369,-171.25013504,0.00044899,2]
[320466489,1711383048378,-171.25013504,0.00044899,2]
[320466491,1711383048388,-171.25013504,0.00044899,2]
[320466493,1711383048397,-171.25013504,0.00044899,2]
[320466495,1711383048406,-171.75,0.00044899,2]
[320466497,1711383048415,-239.82518906,0.00044899,2]
[320466499,1711383048424,-239.82518906,0.00044899,2]
[320466501,1711383048433,-239.82518906,0.00044899,2]
[320466503,1711383048448,-239.82518906,0.00044899,2]
[320466505,1711383048457,-239.82518906,0.00044899,2]
[320466507,1711383048467,-239.82518906,0.00044899,2]
[320466509,1711383048477,-239.82518906,0.00044899,2]
[320466511,1711383048486,-239.82518906,0.00044899,2]
[320466513,1711383048495,-239.82518906,0.00044899,2]
[320466515,1711383048504,-239.82518906,0.00044899,2]
[320466517,1711383048514,-239.82518906,0.00044899,2]
[320466519,1711383048524,-239.82518906,0.00044899,2]
[320466521,1711383048533,-239.82518906,0.00044899,2]
[320466523,1711383048542,-239.82518906,0.00044899,2]
[320466525,1711383048551,-239.82518906,0.00044899,2]
[320466527,1711383048561,-239.82518906,0.00044899,2]
[320466529,1711383048570,-239.82518906,0.00044899,2]
[320466531,1711383048578,-239.82518906,0.00044899,2]
[320466533,1711383048587,-239.82518906,0.00044899,2]
[320466535,1711383048596,-455.55464992,0.00044899,4]
[320466537,1711383048605,-1888.81529834,0.00044899,4]
[320466539,1711383048614,-578.33737248,0.000449,2]
[320466541,1711383048625,-578.33737248,0.000449,2]
[320466543,1711383048634,-578.33737248,0.000449,2]
[320466545,1711383048643,-578.33737248,0.000449,2]
[320466547,1711383048653,-578.33737248,0.000449,2]
[320466549,1711383048662,-578.33737248,0.000449,2]
[320466551,1711383048672,-578.33737248,0.000449,2]
[320466553,1711383048682,-578.33737248,0.000449,2]
[320466554,1711383048694,-578.33737248,0.000449,2]
[320466556,1711383048704,-578.33737248,0.000449,2]
[320466558,1711383048713,-578.33737248,0.000449,2]
[320466560,1711383048722,-578.33737248,0.000449,2]
[320466562,1711383048732,-578.33737248,0.000449,2]
[320466564,1711383048741,-578.33737248,0.000449,2]
[320466566,1711383048750,-578.33737248,0.000449,2]
[320466568,1711383048759,-578.33737248,0.000449,2]
[320466570,1711383048768,-578.33737248,0.000449,2]
[320466572,1711383048777,-578.33737248,0.000449,2]
[320466574,1711383048786,-578.33737248,0.000449,2]
[320466576,1711383048795,-578.83,0.000449,2]
[320466578,1711383048804,-2313.42448993,0.000449,2]
[320466580,1711383048813,-2313.42448993,0.000449,2]
[320466582,1711383048822,-2313.42448993,0.000449,2]
[320466584,1711383048831,-2313.42448993,0.000449,2]
[320466586,1711383048840,-2313.42448993,0.000449,2]
[320466588,1711383048849,-2313.42448993,0.000449,2]
[320466590,1711383048858,-2313.42448993,0.000449,2]
[320466592,1711383048867,-2313.42448993,0.000449,2]
[320466594,1711383048876,-2313.42448993,0.000449,2]
[320466596,1711383048885,-2313.42448993,0.000449,2]
[320466597,1711383048894,-2313.42448993,0.000449,2]
[320466599,1711383048904,-2313.42448993,0.000449,2]
[320466601,1711383048913,-2313.42448993,0.000449,2]
[320466603,1711383048922,-2313.42448993,0.000449,2]
[320466605,1711383048931,-2313.42448993,0.000449,2]
[320466607,1711383048943,-2313.42448993,0.000449,2]
[320466609,1711383048951,-2313.42448993,0.000449,2]
[320466611,1711383048961,-2313.42448993,0.000449,2]
[320466612,1711383048970,-2313.42448993,0.000449,2]
[320466613,1711383048980,-2313.92,0.000449,2]
[320466614,1711383048989,-150.34614671,0.000449,2]
[320466615,1711383048999,-150.34614671,0.000449,2]
[320466616,1711383049008,-150.34614671,0.000449,2]
[320466617,1711383049017,-150.34614671,0.000449,2]
[320466618,1711383049026,-150.34614671,0.000449,2]
[320466619,1711383049035,-150.34614671,0.000449,2]
[320466620,1711383049046,-150.34614671,0.000449,2]
[320466621,1711383049055,-150.34614671,0.000449,2]
[320466622,1711383049064,-150.34614671,0.000449,2]
[320466623,1711383049073,-150.34614671,0.000449,2]
[320466624,1711383049082,-150.34614671,0.000449,2]
[320466625,1711383049091,-150.34614671,0.000449,2]
[320466626,1711383049101,-150.34614671,0.000449,2]
[320466627,1711383049110,-150.34614671,0.000449,2]
[320466628,1711383049120,-150.34614671,0.000449,2]
[320466629,1711383049130,-150.34614671,0.000449,2]
[320466630,1711383049139,-150.34614671,0.000449,2]
[320466631,1711383049148,-150.34614671,0.000449,2]
[320466632,1711383049158,-150.84,0.000449,2]
[320466633,1711383049167,-571.39035749,0.000449,2]
[320466634,1711383049177,-571.39035749,0.000449,2]
[320466635,1711383049274,-571.39035749,0.000449,2]
[320466636,1711383049284,-571.39035749,0.000449,2]
[320466637,1711383049293,-571.39035749,0.000449,2]
[320466638,1711383049303,-571.39035749,0.000449,2]
[320466639,1711383049313,-571.39035749,0.000449,2]
[320466640,1711383049324,-571.39035749,0.000449,2]
[320466641,1711383049333,-571.39035749,0.000449,2]
[320466642,1711383049342,-571.39035749,0.000449,2]
[320466643,1711383049354,-571.39035749,0.000449,2]
[320466644,1711383049366,-571.39035749,0.000449,2]
[320466645,1711383049376,-571.39035749,0.000449,2]
[320466646,1711383049386,-571.39035749,0.000449,2]
[320466647,1711383049395,-571.39035749,0.000449,2]
[320466648,1711383049404,-571.39035749,0.000449,2]
[320466649,1711383049414,-571.39035749,0.000449,2]
[320466650,1711383049424,-571.39035749,0.000449,2]
[320466651,1711383049433,-571.39035749,0.000449,2]
[320466652,1711383049445,-571.89,0.000449,2]
[320466653,1711383049454,-151.0,0.000449,7]
[320466654,1711383049463,-388.402425,0.000449,6]
[320466655,1711383049473,-1536.7485306,0.000449,6]
[320466656,1711383049484,-240.32,0.000449,2]
[320466657,1711383049493,-151.0,0.000449,7]
[320466658,1711383049502,-3540.64,0.00044931,120]
[320466659,1711383049511,-150.5,0.0004497,35]
[320466660,1711383049520,-150.5,0.0004497,35]
[320466661,1711383049530,-168.53,0.0004497,35]
[320466662,1711383049539,-278.340054,0.0004497,7]
[320466663,1711383049548,-278.340054,0.0004497,7]
[320466664,1711383049557,-150.5,0.0004498,35]
[320466665,1711383049567,-150.5,0.0004498,35]
[320466666,1711383049577,-150.5,0.0004498,35]
[320466667,1711383049587,-150.5,0.0004499,35]
[320466668,1711383049596,-150.5,0.0004499,35]
[320466669,1711383049606,-150.5,0.0004499,35]
[320466670,1711383049617,-631.94445589,0.00044999,4]
[320466671,1711383049628,-298.560012,0.00044999,7]
[320466672,1711383049639,-298.560012,0.00044999,7]
[320466673,1711383049655,-480.371741,0.00044999,7]
[320466674,1711383049665,-195.332615,0.00044999,7]
[320466675,1711383049678,-480.371741,0.00044999,7]
[320466676,1711383049688,-195.332615,0.00044999,7]
[320466677,1711383049696,-1508.801627,0.00044999,7]
[320466678,1711383049705,-1508.801627,0.00044999,7]
[320466679,1711383049716,-151.0,0.00044999,7]
[320466680,1711383049725,-2336.415489,0.00044999,7]
[320466681,1711383049736,-2336.415489,0.00044999,7]
[320466682,1711383049746,-547.97279472,0.00044999,120]
[320466683,1711383049755,-452.32118116,0.00044999,120]
[320466684,1711383049765,-402.27187933,0.00044999,120]
[320466685,1711383049775,-500.0,0.00044999,120]
[320466686,1711383049784,-500.0,0.00044999,120]
[320466687,1711383049793,-500.0,0.00044999,120]
[320466688,1711383049803,-500.0,0.00044999,120]
[320466689,1711383049812,-500.0,0.00044999,120]
[320466690,1711383049821,-500.0,0.00044999,120]
[320466691,1711383049831,-500.0,0.00044999,120]
[320466692,1711383049840,-500.0,0.00044999,120]
[320466693,1711383049850,-500.0,0.00044999,120]
[320466694,1711383049860,-500.0,0.00044999,120]
[320466695,1711383049869,-500.0,0.00044999,120]
[320466696,1711383049879,-500.0,0.00044999,120]
[320466697,1711383049889,-500.0,0.00044999,120]
[320466698,1711383049898,-500.0,0.00044999,120]
[320466699,1711383049908,-248.15207013,0.00044999,120]
[320466700,1711383049917,-500.0,0.00044999,120]
[320466701,1711383049926,-500.0,0.00044999,120]
[320466702,1711383049936,-500.0,0.00044999,120]
[320466703,1711383049947,-500.0,0.00044999,120]
[320466704,1711383049957,-500.0,0.00044999,120]
[320466705,1711383049968,-500.0,0.00044999,120]
[320466706,1711383049977,-450.0,0.00044999,120]
[320466707,1711383049987,-493.95394858,0.00044999,120]
[320466708,1711383049998,-500.0,0.00044999,120]
[320466709,1711383050007,-500.0,0.00044999,120]
[320466710,1711383050017,-500.0,0.00044999,120]
[320466711,1711383050027,-499.65851721,0.00045,2]
[320466712,1711383050038,-472060.22665003,0.00045,30]
[320466713,1711383050268,-262.5,0.00045,30]
[320466714,1711383050294,-750.87855459,0.000274,2]
[320466715,1711383050305,-6204.12144541,0.00045,30]
[320466722,1711383063079,11035.69753989,0.00020966,2]
[320466724,1711383094564,14764.8058419,0.00020966,2]
[320466740,1711384050693,-155.02170304,0.00027399,2]
[320466741,1711384050717,-514.95447962,0.000274,2]
[320466997,1711384237839,-1822.42783438,0.00035611,2]
[320466999,1711384237848,-865.39980906,0.00035611,4]
[320467001,1711384237858,-10424.06616258,0.00035612,5]
[320467003,1711384237867,-1606.325758,0.00035616,120]
[320467005,1711384237877,-24900.0,0.00036861,2]
[320467007,1711384237887,-155.07598723,0.00041552,4]
[320467009,1711384237897,-1606.325758,0.00041553,120]
[320467011,1711384237907,-500.0,0.00042,120]
[320467013,1711384237917,-2070.98,0.00043,30]
[320467015,1711384237929,-2000.0,0.000436,30]
[320467017,1711384237939,-500.0,0.00043835,30]
[320467019,1711384237948,-3810.12846245,0.00043835,4]
[320467139,1711384239890,-2080.72636259,0.00043835,4]
[320467157,1711384241366,-3632.81005717,0.00043835,4]
[320467158,1711384241379,-2000.0,0.00043835,4]
[320467196,1711384243120,-1263.49265533,0.00043835,4]
[320467197,1711384243129,-219.94060134,0.000439,2]
[320467198,1711384243140,-1000.0,0.00044,44]
[320467199,1711384243149,-1496.0,0.00044,120]
[320467200,1711384243159,-500.0,0.00044379,120]
[320467201,1711384243169,-500.0,0.00044379,120]
[320467202,1711384243178,-500.0,0.00044379,120]
[320467203,1711384243188,-469.81269425,0.00044379,120]
[320467204,1711384243198,-500.0,0.00044379,120]
[320467205,1711384243209,-219.94060132,0.000444,2]
[320467206,1711384243218,-159.66412119,0.0004455,3]
[320467207,1711384243238,-498.60927105,0.00044898,4]
[320467209,1711384243261,-253.43184988,0.00044898,4]
[320467210,1711384243271,-1072.96414753,0.00044898,39]
[320467211,1711384243281,-300.26174807,0.000449,2]
[320467212,1711384243292,-300.0,0.000449,3]
[320467213,1711384243303,-1213.0,0.000449,5]
[320467214,1711384243313,-2882.33932779,0.000449,2]
[320467215,1711384243323,-150.5,0.0004497,35]
[320467216,1711384243334,-150.5,0.0004498,35]
[320467217,1711384243343,-230.58,0.0004499,35]
[320467218,1711384243354,-150.5,0.0004499,35]
[320467219,1711384243363,-152.93,0.0004499,35]
[320467220,1711384243373,-1970.12271033,0.00044996,120]
[320467221,1711384243383,-324.62337279,0.00044998,4]
[320467222,1711384243393,-155.05484116,0.00044998,5]
[320467223,1711384243403,-584.2705554,0.00044998,7]
[320467224,1711384243413,-701.3830746,0.00044998,2]
[320467225,1711384243423,-160.0,0.00044999,30]
[320467226,1711384243433,-3689.90107089,0.00044999,120]
[320467227,1711384243442,-150.70331571,0.00044999,60]
[320467228,1711384243452,-2271.61,0.00044999,120]
[320467229,1711384243461,-2803.01,0.00044999,120]
[320467230,1711384243471,-274.42363269,0.00044999,120]
[320467231,1711384243480,-2226.70254156,0.00045,5]
[320467299,1711384302221,-155.07753877,0.00027399,2]
[320467300,1711384302244,-750.87855459,0.000274,2]
[320467301,1711384357435,155.08219356,0.000274,2]
[320467302,1711384375437,161.32087433,0.000274,2]
[320467324,1711384939011,6104.64083875,0.00027,2]
[320467325,1711384990836,150.5,0.0002699,35]
[320467326,1711384991336,150.5,0.0002698,35]
[320467327,1711384991805,150.5,0.0002697,35]
[320467328,1711385002181,2092.18390554,0.00027,30]
[320467329,1711385018011,2092.18390554,0.0002697,30]
[320467332,1711385105022,150.5,0.0002699,35]
[320467333,1711385105539,175.81,0.0002698,35]
[320467348,1711385174079,2913.90704783,0.00025,9]
[320467355,1711385317512,5000.0,0.00025,9]
[320467356,1711385326008,5000.0,0.00025,9]
[320467357,1711385334974,1219.48780394,0.00025,9]
[320467358,1711385343050,152.93,0.0002699,35]
[320467360,1711385345559,230.58,0.0002699,35]
[320468166,1711385438014,-155.11944197,0.00024023,2]
[320468167,1711385438024,-155.11944197,0.00024024,2]
[320468168,1711385438037,-155.11944197,0.00024024,2]
[320468169,1711385438155,-1478.45909339,0.00024024,2]
[320468170,1711385438165,-166.666666,0.00024025,2]
[320468171,1711385438175,-166.666666,0.0002468,2]
[320468172,1711385438184,-1573.60018062,0.00024864,2]
[320468173,1711385438194,-155.11944197,0.00024865,2]
[320468174,1711385438203,-155.11944197,0.00024865,2]
[320468175,1711385438213,-2749.7413467,0.00024865,2]
[320468176,1711385438222,-241.146724,0.0002487,2]